Workbook

Sheet Requirement calculator
C3: How much plastic mulch do you need per acre?
C4: System of units shown: | F4: ENGLISH UNITS
C6: This information is used to calculate the number of rolls of mulch that would be needed per acre based on roll length.
C8: In the box on the right, enter the spacing based on the distance between bed centers then click the "Calculate" button: | K8: ft (bed center to bed center)
C10: You will need:
D12: 500 ft roll, or
D14: 750 ft roll, or
D16: 1,000 ft roll, or
D18: 3,000 ft roll, or
D20: 4,000 ft roll, or
D22: 6,000 ft roll, or
C26: How much plastic mulch do you need per hectare?
C27: System of units shown: | F27: METRIC SYSTEM UNITS
C29: This information is used to calculate the number of rolls of mulch that would be needed per hectare based on roll length.
C31: In the box on the right, enter the spacing based on the distance between bed centers then click the "Calculate" button: | K31: m (bed center to bed center)
C33: You will need:
D35: 152.4 m roll, or
D37: 228.6 m roll, or
D39: 304.8 m roll, or
D41: 914.4 m roll, or
D43: 1,219.2 m roll, or
D45: 1,828.8 m roll, or
C47: The length of roll shown here is equivalent to the length of roll that is revealed in the box in the previous section; for instance, 152.4 m = 500 ft.

Sheet Cost calculator
B2: Please choose the units you prefer:
B3: Your choice will only reflect the units below following English units (acre, foot, mil, pound) or the metric system (meter, hectare, kilogram). It will not do conversions of actual numbers from one system of units to another.
B5: Please enter your numbers and other information in the blue colored boxes. These are needed to calculate the per acre cost comparisons between the two types of mulches (see gray box on the right). Details in the blue colored boxes you see below are examples only. Please modify them as applicable to your own operation. Numbers in white and gray boxes cannot be changed because the boxes contain the formulas for the calculations. Estimated total costs for installation and clean-up of the two types of mulches are shown and compared in the gray box. Activities listed under Polyethylene Plastic Mulch and Biodegradable Mulch can also be changed as necessary to reflect your own operation.
B7: A. Information about the Field that Uses Mulch
B9: Production area | F9: 4 | H9: acre/s
B11: Crop/s grown | F11: pumpkin and other vegetables
B13: B. Mulch Required - Description, Quantity and Cost | P13: Per Acre Cost Comparison
B15: 1. Polyethylene (PE) Plastic Mulch | Q15: PE Plastic Mulch | R15: Biodegradable Mulch
B17: Name of product | F17: PE | P17: Mulch Installation
B19: Color | F19: black | P19: Machinery | Q19: =$N$57+$N$59 -> 108.75 | R19: =$N$57+$N$59 -> 108.75
B21: Thickness | F21: 1 | H21: mil | P21: Material | Q21: =$F$27*$F$29 -> 405 | R21: =$F$47*$F$49 -> 1050
B23: Roll lengthA | F23: 3000 | H23: ft | P23: Installation labor | Q23: =$L$71 -> 240 | R23: =L71 -> 240
B25: Number of rolls neededA | F25: 2.9 | H25: rolls per acre | P25: End-of season
B27: Actual number of rolls purchased | F27: 3 | H27: rolls per acre | P27: Mulch removal | Q27: =SUM($N$77,$N$79,$L$89,$L$91,$L$93,$L$95,$L$97,$L$99,$L$101,$L$103) -> 682.5 | R27: 0
B29: Cost of mulch per roll | F29: 135 | H29: $ per roll | P29: Mulch disposal | Q29: =$F$115*$F$117 -> 15.5875 | R29: 0
B31: Weight of mulch | F31: 86 | H31: pounds per roll | P31: Mulch tilled into the soil | Q31: 0 | R31: =$F$124+$F$126+$L$133+L135 -> 244.5
P33: Total Cost | Q33: =SUM(Q19:Q31) -> 1451.8375 | R33: =SUM(R19:R31) -> 1643.25
B35: 2. Biodegradable Mulch (BDM) | P35: Difference in Using Biodegradable Mulch | R35: =R33-Q33 -> 191.4125
B37: Name of product | F37: BDM
B39: Color | F39: black
B41: Thickness | F41: 1 | H41: mil
B43: Roll lengthA | F43: 3000 | H43: ft
B45: Number of rolls neededA | F45: 2.9 | H45: rolls per acre
B47: Actual number of rolls purchased | F47: 3 | H47: rolls per acre
B49: Cost of mulch per roll | F49: 350 | H49: $ per roll
B51: AInformation obtained from "Requirement calculator".
B53: C. Mulch Installation (same for PE Mulch and BDM)
B54: 1. Machinery Cost
B55: Machine | D55: Purchase cost | F55: Expected useful life (number of years) | H55: Salvage valueB | J55: Interest costC | L55: Depreciation costD | N55: Cost ($/acre)
B57: Mulch layer | D57: 6000 | F57: 20 | H57: 600 | J57: =IF(ISBLANK(D57), "0", (((D57+H57)/2)*$F$62)) -> 165 | L57: =IF(ISBLANK(D57), "0", IF(ISBLANK(F57), "0", IF(ISBLANK(H57), "0", ((D57-H57)/F57)))) -> 270 | N57: =(J57+L57)/$F$9 -> 108.75
B59: Other: | J59: =IF(ISBLANK(D59), "0", (((D59+H59)/2)*$F$62)) -> 0 | L59: =IF(ISBLANK(D59), "0", IF(ISBLANK(F59), "0", IF(ISBLANK(H59), "0", ((D59-H59)/F59)))) -> 0 | N59: =(J59+L59)/$F$9 -> 0
B62: Interest rate (%) | F62: 0.05
B64: B Enter your estimate for the salvage value. Salvage Value refers to the value of an asset at the end of its useful life. In general, a salvage value will be a positive value. However, it may be zero if the asset will be used until it is completely worn out and will have no scrap value at the end of its useful life.
B65: C Interest Cost is calculated as: (Total Purchase Price + Salvage Value)/2 x Interest Rate.
B66: D Depreciation cost is calculated as straight line depreciation: (Total Purchase Price - Salvage Value)/Years of Expected Useful Life.
B68: 2. Labor Cost
B69: Activity | D69: Machine | F69: Time spent (hour/acre) | H69: No. of workers | J69: Wage rate ($/hour) | L69: Total cost ($/acre)
B71: Installation | D71: Using mulch layer | F71: 8 | H71: 2 | J71: 15 | L71: =F71*H71*J71 -> 240
B73: D. PE Mulch - Removal
B74: 1. Machinery CostE
B75: Machine | D75: Purchase cost | F75: Time spent (hour/acre) | H75: Salvage value | J75: Interest cost | L75: Total cost ($/acre) | N75: Cost ($/acre)
B77: Machine 1 | J77: =IF(ISBLANK(D77), "0", (((D77+H77)/2)*$F$82)) -> 0 | L77: =IF(ISBLANK(D77), "0", IF(ISBLANK(F77), "0", IF(ISBLANK(H77), "0", ((D77-H77)/F77)))) -> 0 | N77: =(J77+L77)/$F$9 -> 0
B79: Other: | J79: =IF(ISBLANK(D79), "0", (((D79+H79)/2)*$F$62)) -> 0 | L79: =IF(ISBLANK(D79), "0", IF(ISBLANK(F79), "0", IF(ISBLANK(H79), "0", ((D79-H79)/F79)))) -> 0 | N79: =(J79+L79)/$F$9 -> 0
B82: Interest rate (%) | F82: 0.05
B84: E Please list the machine purchased to remove plastic mulch, if any (for example, plastic mulch lifter). Salvage value, interest cost and depreciation cost are calculated the same as in Section C above.
B86: 2. Labor CostF
B87: Activity | D87: Method usedG | F87: Time spent (hour/acre) | H87: No. of workers | J87: Wage rate ($/hour) | L87: Total cost ($/acre)
B89: Loosening shoulders | D89: Manual | F89: 10 | H89: 1 | J89: 13 | L89: =F89*H89*J89 -> 130
D90: Manual
B91: Removing plants | D91: Manual | F91: 1.5 | G91: 1 | H91: 2 | J91: 13 | L91: =F91*H91*J91 -> 39
B93: Pulling plasticH | D93: Manual | F93: 8 | H93: 3 | J93: 13 | L93: =F93*H93*J93 -> 312
B95: Rolling up plastic | D95: Manual | F95: 3 | H95: 3 | J95: 13 | L95: =F95*H95*J95 -> 117
B97: Cleaning up remnants | D97: Manual | F97: 6 | H97: 1 | J97: 13 | L97: =F97*H97*J97 -> 78
B99: Disposing plastic | D99: Manual | F99: 0.5 | H99: 1 | J99: 13 | L99: =F99*H99*J99 -> 6.5
B101: Other: | L101: =F101*H101*J101 -> 0
B103: Other: | L103: =F103*H103*J103 -> 0
B105: FIf it is difficult to list a breakdown of activities and only a lump sum or total cost is available, you can leave the cells blank in columns F, H, and J and enter the lump sum value under "Total Cost". For instance, if you can only provide the lump sum cost for disposal, you can simply enter "Disposing Plastic" in row 89-column B, leave the other rows 91-103 blank, and enter the corresponding cost in row 89-column L .
B106: GIndicate if an activity is done manually or if a machine used (e.g., tractor with roller, end of bed roller, etc.).
B107: HIf there is drip tape, the tape is traditionally removed simultaneously with the plastic mulch.
B109: 2. Dumping Fee
B110: Initial mulch weight | F110: =F25*F31 -> 249.4 | H110: pounds per acre
B112: Estimated increase in weight of
B113: mulch due to dirt and other debris | F113: 0.25 | H113: percent
B115: Weight of plastic to be disposed | E115: =((E110 * (1 + E113)) * 0.0005) *(0.907185/0.404686) -> 0 | F115: =((F110 * (1 + F113)) * 0.0005) -> 0.155875 | H115: ton per acre
B117: Dumping fee | F117: 100 | H117: $ per ton
B120: E. BDM - Tillage
B121: 1. Machinery Cost for Tillage
B122: Machine | D122: Description | F122: Total cost ($/acre)
B124: Tractor + rototiller | D124: Fuel | F124: 10
B126: Other: | D126: Maintenance | F126: 5
B129: 2. Labor Cost
B130: Activity | D130: Method used | F130: Time spent | H130: No. of workers | J130: Wage rate | L130: Total cost
F131: (hour/acre) | J131: ($/hour) | L131: ($/acre)
B133: Pulling drip tape | D133: Manual | F133: 1.5 | H133: 1 | J133: 13 | L133: =F133*H133*J133 -> 19.5
B135: Tilling mulch into the soil | D135: Tractor with rototiller | F135: 7 | H135: 2 | J135: 15 | L135: =F135*H135*J135 -> 210
